bitfinex/quotes_ETHUSD_20251018
["timestamp","ask_amount","ask_price","bid_price","bid_amount"]
[1760758438279,1.728,3880.9,3880.5,0.1288]
[1760758438645,1.77291527,3880.9,3880.5,0.1288]
[1760758440541,1.77291527,3880.9,3880.6,0.4669]
[1760758440766,1.77291527,3880.9,3880.5,0.1288]
[1760758440965,1.77291527,3880.9,3880.6,0.4669]
[1760758441172,1.77291527,3880.9,3880.7,0.4669]
[1760758441575,1.77291527,3880.9,3880.8,0.4669]
[1760758441745,0.04491527,3880.9,3880.8,0.4669]
[1760758442074,0.002,3881.5,3880.8,0.4669]
[1760758442273,0.04490929,3881.2,3880.8,0.4669]
[1760758442473,0.04490929,3881.2,3881.1,2.57658911]
[1760758442649,0.002,3881.5,3881.1,2.57658911]
[1760758442650,0.002,3881.5,3881.1,3.13861021]
[1760758442842,0.002,3881.5,3881.2,3.04341081]
[1760758443269,0.002,3881.5,3881.3,0.4669]
[1760758443649,0.002,3881.5,3881.4,0.4506]
[1760758443946,0.002,3881.5,3881.4,3.02698996]
[1760758444158,0.002,3881.5,3881.4,1.06715327]
[1760758444358,0.002,3881.5,3881.4,0.4506]
[1760758445182,0.002,3881.5,3881.4,3.02698996]
[1760758449467,0.002,3881.5,3881.4,3.05275385]
[1760758449681,0.002,3881.5,3881.4,3.02698996]
[1760758451898,0.002,3881.5,3881.4,3.05275385]
[1760758452097,0.002,3881.5,3881.4,3.18155385]
[1760758452309,0.002,3881.5,3881.4,3.15578996]
[1760758452487,0.002,3881.5,3881.4,5.46735009]
[1760758454078,0.002,3881.5,3881.4,5.57063226]
[1760758458296,0.002,3881.9,3881.8,2.57612447]
[1760758458702,0.002,3881.9,3881.8,3.18128571]
[1760758458909,0.002,3882.3,3882.2,2.57585904]
[1760758459118,0.002,3882.3,3882.2,3.21903959]
[1760758459300,0.002,3882.3,3882.2,3.66963959]
[1760758459480,0.002,3882.3,3882.2,3.69539818]
[1760758460309,0.002,3882.3,3882.2,4.11663959]
[1760758461095,0.002,3882.3,3882.2,4.14239818]
[1760758463416,0.002,3882.3,3882.2,3.66603959]
[1760758463726,0.002,3882.3,3882.2,4.01439818]
[1760758464020,0.002,3882.3,3882.2,3.98863959]
[1760758464184,0.002,3882.3,3882.2,4.01439818]
[1760758464381,0.002,3882.3,3882.2,3.98863959]
[1760758465114,0.002,3882.3,3882.2,3.54163959]
[1760758466819,0.002,3882.3,3882.2,3.09103959]
[1760758469199,0.4666,3882.3,3882.2,2.57585904]
[1760758470521,0.4666,3882.3,3882.1,0.001]
[1760758470696,0.002,3882.3,3882.2,2.57585904]
[1760758471026,0.4666,3882.3,3882.2,2.57585904]
[1760758473492,0.4666,3882.3,3882.2,2.70385904]
[1760758475724,0.002,3882.3,3882.2,2.70385904]
[1760758476127,0.002,3882.3,3882.2,3.25770064]
[1760758476430,0.002,3882.3,3882.2,3.23194205]
[1760758476801,0.002,3882.3,3882.2,3.73130064]
[1760758477541,1e-08,3882.4,3882.3,2.5757927]
[1760758477731,1e-08,3882.4,3882.3,5.6483927]
[1760758477927,1e-08,3882.4,3882.3,6.79412328]
[1760758479523,1e-08,3882.4,3882.3,7.25872328]
[1760758480335,1e-08,3882.4,3882.3,9.11472328]
[1760758481014,0.21660001,3883.6,3883.5,2.57499678]
[1760758482146,0.21660001,3883.6,3882.2,1.00168301]
[1760758482445,0.0499,3883.8,3883.3,2.57512327]
[1760758482624,0.0499,3883.8,3883.3,2.57511128]
[1760758482943,0.0499,3883.8,3883.5,2.57494004]
[1760758483165,0.2197,3883.7,3883.5,2.57494004]
[1760758483318,0.0499,3883.8,3883.5,2.57494004]
[1760758483647,0.2197,3883.7,3883.5,2.57494004]
[1760758483827,0.0499,3883.8,3883.4,2.57505304]
[1760758484028,0.2197,3883.7,3883.4,2.57505304]
[1760758484223,0.0499,3883.8,3883.4,2.57505304]
[1760758484446,0.2197,3883.6,3883.5,2.57499678]
[1760758487050,0.0499,3883.8,3883.3,2.57509693]
[1760758487250,0.2197,3883.7,3883.5,2.57494915]
[1760758487452,0.0499,3883.8,3883.5,2.57494915]
[1760758487645,0.0499,3883.8,3883.2,2.5751766]
[1760758487848,0.2696,3883.8,3883.2,2.83269426]
[1760758488025,0.002,3883.6,3883.2,2.83269426]
[1760758488225,0.002,3883.6,3883.5,2.57499678]
[1760758488427,0.2217,3883.6,3883.5,2.57499678]
[1760758488628,0.002,3883.6,3883.4,2.57504322]
[1760758488960,0.2217,3883.6,3883.4,2.57504322]
[1760758489130,0.2217,3883.6,3883.5,2.57499678]
[1760758491076,0.2217,3883.6,3883.5,2.70299678]
[1760758492173,0.002,3883.6,3883.5,3.25656588]
[1760758492340,0.002,3883.6,3883.5,3.28231584]
[1760758492659,0.002,3883.6,3883.5,3.73016588]
[1760758493539,0.002,3883.6,3883.5,3.75591584]
[1760758495434,0.002,3883.6,3883.5,3.73016588]
[1760758495890,0.002,3883.6,3883.5,3.87591584]
[1760758496171,0.40375021,3885.9,3883.6,4.30293047]
[1760758496333,0.0448643,3885.7,3883.8,4.30279787]
[1760758496537,0.0688,3885.3,3885.0,2.57394345]
[1760758496756,0.0448643,3885.7,3884.8,2.57413231]
[1760758496961,0.0688,3885.2,3884.8,2.57413231]
[1760758497133,0.0448643,3885.7,3884.8,2.57413231]
[1760758497332,0.2219,3884.9,3884.6,2.57426312]
[1760758497535,0.2219,3884.9,3884.6,2.57420934]
[1760758497536,0.0703,3884.8,3884.6,2.57420934]
[1760758497768,0.0703,3884.7,3884.2,0.77396485]
[1760758498083,0.0703,3884.6,3884.2,2.57447765]
[1760758498239,0.0703,3884.5,3884.2,2.57447765]
[1760758498566,0.2219,3884.9,3884.3,2.57444718]
[1760758498732,0.0703,3884.8,3884.3,2.57444718]
[1760758498936,0.0703,3884.7,3884.3,2.57444718]
[1760758499166,0.0703,3884.6,3884.3,2.57444718]
[1760758499775,0.0703,3884.5,3884.2,2.57449954]
[1760758499960,0.2219,3884.9,3884.0,2.57465425]
[1760758500147,0.0703,3884.7,3884.1,2.574599]
[1760758500567,0.0703,3884.7,3884.2,2.57451603]
[1760758500945,0.0703,3884.6,3884.3,2.57443434]
[1760758501150,0.0703,3884.6,3884.4,2.57437312]
[1760758501352,0.0703,3884.6,3884.3,2.57445327]
[1760758501568,0.2219,3884.9,3884.2,2.57451883]
[1760758501773,0.0703,3884.5,3884.2,2.57451883]
[1760758502069,0.2219,3884.9,3884.3,2.57446279]
[1760758502449,0.0703,3884.8,3884.3,2.57446279]
[1760758502654,0.0703,3884.7,3884.4,2.57438507]
[1760758503520,0.0703,3884.7,3884.3,2.57446644]
[1760758503641,0.2219,3884.9,3884.3,2.57446644]
[1760758503845,0.2219,3884.9,3884.4,2.57438428]
[1760758504074,0.0703,3884.8,3884.5,2.57433304]
[1760758504253,0.2219,3884.9,3884.5,2.57433304]
[1760758504254,0.0703,3884.7,3884.5,2.57433304]
[1760758504651,0.217,3885.1,3884.1,3.05]
[1760758504854,0.2922,3885.1,3884.7,2.57419896]
[1760758505243,0.0752,3885.0,3884.7,2.57419896]
[1760758505447,0.0752,3884.9,3884.7,2.57419896]
[1760758505866,0.0752,3884.8,3884.5,2.57433389]
[1760758506056,0.0752,3884.8,3884.7,2.57420135]
[1760758506376,0.0752,3884.8,3884.7,0.128]
[1760758507089,0.2922,3885.1,3884.7,0.128]
[1760758507289,0.0752,3885.0,3884.5,2.57429464]
[1760758507696,0.218,3885.1,3884.9,0.128]
[1760758508398,0.0752,3885.0,3884.9,0.128]
[1760758509398,0.4437852,3885.0,3884.9,0.128]
[1760758510203,0.3685852,3885.0,3884.9,0.128]
[1760758510499,0.0752,3885.0,3884.9,0.128]
[1760758511196,3.42298969,3885.0,3884.9,0.128]
[1760758511511,5.15098969,3885.0,3883.5,0.77610265]
[1760758511672,3.34778969,3884.5,3883.5,3.35107523]
[1760758512000,0.40997897,3884.4,3883.5,2.57697258]
[1760758512195,0.40997897,3884.4,3883.8,2.57477647]
[1760758512572,3.34778969,3884.1,3883.5,2.57694446]
[1760758512773,0.0815,3884.0,3883.5,2.57694446]
[1760758512985,0.0815,3883.9,3883.5,2.57694446]
[1760758513381,0.003,3885.4,3883.6,0.449]
[1760758513706,0.0815,3884.9,3883.6,0.449]
[1760758513878,0.0815,3884.8,3883.6,3.02387884]
[1760758514070,3.34778969,3885.0,3883.7,0.449]
[1760758514276,3.42928969,3885.0,3883.7,3.02381673]
[1760758514576,3.42928969,3885.0,3884.4,2.57438332]
[1760758514776,0.04486698,3884.7,3884.5,2.57430869]
[1760758515473,0.04486698,3884.7,3884.0,3.02362299]
[1760758515676,3.39265667,3884.7,3884.0,2.57462968]
[1760758515999,0.0815,3884.6,3883.8,2.57479357]
[1760758516204,0.0815,3884.5,3883.5,0.002]
[1760758516394,0.0815,3884.5,3884.0,2.57466506]
[1760758516594,0.0815,3884.5,3884.1,0.02574599]
[1760758516901,0.0815,3884.5,3884.0,2.57466506]
[1760758517208,0.0815,3884.5,3884.0,2.57465035]
[1760758517388,0.0815,3884.5,3883.8,2.57474012]
[1760758517576,0.0815,3884.5,3883.8,2.57479787]
[1760758517904,0.0815,3884.5,3884.0,2.57461817]
[1760758518476,0.0815,3884.5,3883.9,2.57467573]
[1760758518477,0.0815,3884.4,3883.9,2.57467573]
[1760758518803,0.38215723,3884.5,3884.2,2.57447977]
[1760758519006,0.38215723,3884.5,3884.3,2.57446456]
[1760758519206,0.04486698,3884.7,3884.0,0.449]
[1760758519378,0.04486698,3884.7,3884.5,2.57428271]
[1760758519777,0.04486698,3884.7,3884.3,0.449]
[1760758519977,0.04486698,3884.7,3884.5,2.57433177]
[1760758520207,0.04486698,3884.7,3884.4,0.449]
[1760758520409,0.04486698,3884.7,3884.5,2.57431245]
[1760758520620,0.04486698,3884.7,3883.7,2.57481158]
[1760758520788,0.04486698,3884.7,3883.9,0.449]
[1760758520989,0.12636698,3884.7,3884.0,2.57466529]
[1760758521516,0.12636698,3884.7,3884.2,2.57448001]
[1760758521723,0.12636698,3884.7,3884.6,0.128]
[1760758522989,0.12636698,3884.7,3883.5,0.002]
[1760758522990,1.85436698,3884.7,3883.5,0.002]
[1760758523197,3.34778969,3884.0,3883.5,0.002]
[1760758523716,0.0815,3883.9,3883.5,0.002]
[1760758524702,0.0829,3883.8,3883.5,0.002]
[1760758525097,0.0829,3883.7,3883.5,0.002]
[1760758525886,3.56338969,3883.9,3883.5,0.002]
[1760758526100,0.0829,3883.8,3883.5,0.002]
[1760758526619,0.61681552,3883.9,3883.5,0.002]
[1760758526825,0.04487655,3883.9,3883.5,0.002]
[1760758527190,0.04487655,3883.9,3883.5,2.57699155]
[1760758527511,0.04487655,3883.9,3883.6,0.001]
[1760758527908,0.0842,3883.8,3883.6,0.001]
[1760758528082,0.45331662,3883.8,3883.6,0.001]
[1760758529595,2.18131662,3883.8,3883.6,0.001]
[1760758530924,0.36911662,3883.8,3883.6,0.001]
[1760758531231,0.0842,3883.8,3883.6,0.001]
[1760758531390,1.728,3883.9,3883.6,0.001]
[1760758531391,0.0842,3883.7,3883.6,0.001]
[1760758531793,5.15998969,3883.7,3883.6,0.001]
[1760758532208,1.8122,3883.7,3883.6,0.001]
[1760758532415,1.728,3883.7,3883.6,0.001]
[1760758533011,2.0577,3883.7,3883.6,0.129]
[1760758535517,1.728,3883.7,3883.6,0.129]
[1760758554177,0.37457944,3883.9,3883.6,0.129]
[1760758554472,0.3297,3883.8,3883.6,0.129]
[1760758557166,0.04487944,3883.9,3883.6,0.129]
[1760758557474,0.04487944,3883.9,3883.8,2.57479787]
[1760758557641,0.04487944,3883.9,3883.8,3.01849787]
[1760758558579,0.04487944,3883.9,3883.7,2.57484933]
[1760758559070,0.04487944,3883.9,3883.8,2.57479787]
[1760758559847,0.04487944,3883.9,3883.6,0.4648]
[1760758560054,0.04487944,3883.9,3883.7,2.57485334]
[1760758560275,0.4427,3883.8,3883.6,0.001]
[1760758560482,0.89348184,3883.8,3883.6,0.001]
[1760758560785,0.4427,3883.7,3883.6,0.001]
[1760758561088,0.04487944,3883.9,3883.7,2.57483938]
[1760758561380,0.002,3884.0,3883.6,2.57593046]
[1760758561589,0.002,3884.0,3883.9,2.57473158]
[1760758561773,0.002,3884.0,3883.8,2.57474082]
[1760758561960,0.002,3884.0,3883.6,0.53837563]
[1760758562162,0.002,3884.0,3883.6,0.001]
[1760758562392,0.002,3884.0,3883.7,3.0386583]
[1760758562576,0.002,3884.0,3883.8,0.4638]
[1760758562971,0.002,3884.0,3883.6,2.57592034]
[1760758563304,0.002,3884.0,3883.6,0.001]
[1760758563625,0.002,3884.0,3883.7,0.4638]
[1760758564268,0.002,3884.0,3883.6,0.001]
[1760758564468,0.002,3884.0,3883.7,2.57480751]
[1760758564700,0.002,3884.0,3883.6,2.57588294]
[1760758565003,0.4349,3884.0,3883.6,2.57588294]
[1760758565311,0.4349,3884.0,3883.6,0.001]
[1760758565312,5.74623893,3883.7,3883.6,0.001]
[1760758565633,6.36435282,3883.7,3883.6,0.001]
[1760758565896,6.79725282,3883.7,3883.6,0.001]
[1760758570011,2.34611389,3883.7,3883.6,0.001]
[1760758570210,1.728,3883.7,3883.6,0.001]
[1760758574092,2.1609,3883.7,3883.6,0.001]
[1760758574999,1.728,3883.7,3883.6,2.57593047]
[1760758575204,0.04689897,3884.0,3883.9,2.57473158]
[1760758575205,0.002,3884.0,3883.9,2.57473158]
[1760758575729,0.002,3884.0,3883.9,3.00463158]
[1760758579231,0.002,3884.0,3883.7,0.27059305]
[1760758579400,0.002,3884.0,3883.9,2.57473158]
[1760758581136,0.002,3884.0,3883.9,3.00463158]
[1760758581301,0.002,3884.0,3883.9,3.5897404]
[1760758583742,0.002,3884.0,3883.9,3.1598404]
[1760758584341,0.002,3884.0,3883.9,3.5897404]
[1760758585044,0.002,3884.0,3883.9,3.5907404]
[1760758585345,2.57614886,3886.3,3884.2,2.57453272]
[1760758585346,0.003,3886.3,3884.2,2.57453272]
[1760758585515,0.4328,3886.1,3885.3,2.74270382]
[1760758585911,0.4328,3886.1,3885.3,3.17260382]
[1760758586167,0.4328,3886.1,3885.3,3.57638653]
[1760758587244,0.4328,3886.1,3885.7,2.57353887]
[1760758587245,0.003,3886.1,3885.7,2.57353887]
[1760758587651,0.003,3886.1,3885.7,3.00343887]
[1760758587948,0.003,3886.1,3885.9,2.57340641]
[1760758588354,0.003,3886.1,3885.9,3.00330641]
[1760758590650,0.003,3886.1,3885.3,0.40378271]
[1760758590651,0.4311,3886.0,3885.3,0.40378271]
[1760758590824,0.4311,3886.0,3885.6,2.57357893]
[1760758590825,0.1174,3885.9,3885.6,2.57357893]
[1760758591020,0.425,3885.8,3885.6,2.57354722]
[1760758591240,0.1174,3885.9,3885.7,2.57353887]
[1760758591452,0.003,3886.0,3885.9,2.57340641]
[1760758592151,0.003,3886.0,3885.8,2.57346371]
[1760758592352,0.5425,3885.9,3885.3,0.40378271]
[1760758592761,0.5425,3885.9,3884.5,0.1689]
[1760758592954,0.5425,3885.9,3884.9,0.5425]
[1760758593158,0.419,3885.8,3884.9,0.5425]
[1760758593356,0.419,3885.8,3884.9,3.11655753]
[1760758593738,0.46385652,3885.7,3885.0,2.57399876]
[1760758593867,0.419,3885.6,3885.0,2.57399876]
[1760758594079,0.04485652,3885.7,3885.1,0.02573936]
[1760758594248,0.04485652,3885.7,3885.6,2.5736051]
[1760758595397,0.04485652,3885.7,3885.6,0.128]
[1760758595693,0.04485652,3885.7,3885.6,2.7016051]
[1760758598588,0.47195652,3885.7,3885.6,0.128]
[1760758599494,0.47195652,3885.7,3885.6,2.7016051]
[1760758600886,0.04485652,3885.7,3885.6,2.7016051]
[1760758602477,0.04485652,3885.7,3885.6,2.7036051]
[1760758607484,0.04485652,3885.7,3885.6,3.1621051]
[1760758608115,0.04485652,3885.7,3885.6,2.7036051]
[1760758610490,0.04485652,3885.7,3885.6,3.1621051]
[1760758610698,0.04485652,3885.7,3885.6,3.26529162]
[1760758611102,0.001,3885.8,3885.6,2.7036027]
[1760758611304,0.4271,3885.7,3885.6,2.7036027]
[1760758611586,0.001,3885.8,3885.6,2.7036027]
[1760758611794,0.001,3885.8,3885.7,2.57353887]
[1760758612029,0.001,3885.8,3885.7,2.70153887]
[1760758614234,0.001,3885.8,3885.7,0.128]
[1760758614437,0.001,3885.8,3885.7,2.70153887]
[1760758615302,0.001,3885.8,3885.7,3.28664626]
[1760758615498,0.001,3885.8,3885.7,0.71310739]
[1760758615734,0.001,3885.8,3885.7,2.70153887]
[1760758616710,0.001,3885.8,3885.7,0.128]
[1760758616943,0.001,3885.8,3885.7,2.70153887]
[1760758617433,0.001,3885.8,3885.7,0.128]
[1760758617606,0.001,3885.8,3885.7,2.70153887]
[1760758617801,0.001,3885.8,3885.7,0.40988389]
[1760758618346,0.001,3885.8,3885.6,0.002]
[1760758618760,0.001,3885.8,3885.6,2.5755527]
[1760758618910,0.001,3885.8,3885.6,0.002]
[1760758619345,0.4162,3885.8,3885.6,0.002]
[1760758620361,0.4152,3885.7,3885.6,0.002]
[1760758621624,5.48698693,3885.7,3885.6,0.002]
[1760758621924,6.30616479,3885.7,3885.6,0.002]
[1760758623975,6.35102589,3885.7,3885.6,0.002]
[1760758624460,12.26835169,3885.7,3885.6,0.002]
[1760758628170,2.57380382,3885.3,3885.2,0.002]
[1760758628357,2.57380382,3885.3,3883.6,0.001]
[1760758628358,2.57426853,3884.6,3883.6,0.129]
[1760758628544,5.24108693,3884.0,3883.6,0.129]
[1760758629171,5.71078693,3884.0,3883.6,0.129]
[1760758629874,5.71078693,3884.0,3883.7,0.128]
[1760758629875,1.728,3884.0,3883.7,0.128]
[1760758630441,2.1977,3884.0,3883.6,0.001]
[1760758630770,2.69433757,3884.0,3883.6,0.001]
[1760758631767,5.26900286,3884.0,3883.6,0.001]
[1760758632549,2.69433757,3884.0,3883.6,0.001]
[1760758633155,2.57486417,3883.7,3883.6,0.001]
[1760758633363,5.84338166,3883.7,3883.6,0.001]
[1760758633563,6.31058166,3883.7,3883.6,0.001]
[1760758634075,6.35547298,3883.7,3883.6,0.001]
[1760758634377,6.75943522,3883.7,3883.6,0.001]
[1760758635881,6.29223522,3883.7,3883.6,0.001]
[1760758636052,5.88827298,3883.7,3883.6,0.001]
[1760758636585,6.35547298,3883.7,3883.6,0.001]
[1760758639078,3.01168605,3883.7,3883.6,0.001]
[1760758639267,5.58387825,3883.7,3883.6,0.001]
[1760758639672,8.15874242,3883.7,3883.6,0.001]
[1760758641085,5.58387825,3883.7,3883.6,0.001]
[1760758641480,8.15874242,3883.7,3883.6,0.001]
[1760758643289,14.54874242,3883.7,3883.6,0.001]
[1760758643496,15.62530066,3883.7,3883.6,0.001]
[1760758643680,18.96908759,3883.7,3883.6,0.001]
[1760758643882,2.5751294,3883.3,3883.2,0.001]
[1760758644085,1.728,3883.6,3883.1,0.002]
[1760758644086,10.99076957,3883.2,3883.1,0.002]
[1760758644288,17.84796957,3883.2,3883.1,0.002]
[1760758644464,18.6655307,3883.2,3883.1,0.002]
[1760758645965,1.728,3883.1,3882.7,0.002]
[1760758646192,5.28988693,3882.9,3882.7,0.002]
[1760758646884,5.75458693,3882.9,3882.7,0.002]
[1760758647083,6.83114517,3882.9,3882.7,0.002]
[1760758648395,6.83114517,3882.9,3882.8,0.42050028]
[1760758648396,4.42034517,3882.9,3882.8,0.42050028]
[1760758648610,5.07178693,3882.9,3882.8,0.42050028]
[1760758649673,1.728,3882.9,3882.8,0.42050028]
[1760758653715,1.77289114,3882.9,3882.8,0.42050028]
[1760758657823,1.77289114,3882.9,3882.8,0.42150028]
[1760758660319,1.77289114,3882.9,3882.8,0.001]
[1760758665338,1.77289114,3882.9,3882.8,0.463]
[1760758666404,1.77289114,3882.9,3882.8,0.001]
[1760758668712,3.31848275,3882.9,3882.8,0.001]
[1760758673518,5.89387742,3882.9,3882.8,0.001]
[1760758674055,7.33800078,3882.9,3882.8,0.001]
[1760758674742,9.91339545,3882.9,3882.8,0.001]
[1760758675951,9.91339545,3882.9,3882.1,0.001]
[1760758675952,4.30385904,3882.2,3882.1,0.001]
[1760758676138,8.89908127,3882.2,3882.1,0.001]
[1760758676449,9.35268127,3882.2,3882.1,0.001]
[1760758676654,9.39758962,3882.2,3882.1,0.001]
[1760758677063,9.35268127,3882.2,3882.1,0.001]
[1760758678524,4.30405811,3881.9,3880.7,0.1689]
[1760758678737,4.48915811,3881.9,3880.4,0.6391]
[1760758678926,4.97617193,3881.9,3880.4,0.6391]
[1760758679125,5.3803455,3881.9,3880.4,0.6391]
[1760758679733,4.43292447,3881.8,3880.4,0.1771]
[1760758679933,4.30432358,3881.5,3880.4,0.1771]
[1760758680343,4.74642358,3881.5,3880.4,0.6142]
[1760758680546,5.19553691,3881.5,3880.4,0.6142]
[1760758680754,5.19553691,3881.5,3880.4,0.1771]
[1760758680922,5.19553691,3881.5,3880.3,0.001]
[1760758682667,1.728,3880.7,3880.0,0.001]
[1760758682825,1.728,3880.1,3880.0,0.001]
[1760758683276,1.77292541,3880.1,3880.0,0.001]
[1760758683477,2.21502541,3880.1,3880.0,0.001]
[1760758683629,4.06444344,3880.1,3880.0,0.001]
[1760758684359,6.23464344,3880.1,3880.0,0.001]
[1760758684557,7.07796388,3880.1,3880.0,0.001]
[1760758684863,7.20731625,3880.1,3880.0,0.001]
[1760758686054,9.78456941,3880.1,3880.0,0.001]
[1760758686359,1.728,3880.0,3879.6,0.001]
[1760758686564,5.74751803,3879.7,3879.6,0.001]
[1760758686862,6.32226983,3879.7,3879.6,0.001]
[1760758687174,7.21378234,3879.7,3879.6,0.001]
[1760758687374,7.21378234,3879.7,3878.5,0.001]
[1760758687375,4.01951803,3878.6,3878.5,0.001]
[1760758687697,1.8619,3878.5,3878.2,0.4395]
[1760758687999,1.8619,3878.5,3875.3,0.02580445]
[1760758688000,2.2638518,3878.5,3877.6,0.4395]
[1760758688165,1.728,3877.6,3877.0,0.5737]
[1760758688559,2.17747422,3878.3,3877.1,0.4395]
[1760758688785,2.17747422,3878.3,3878.2,0.214]
[1760758688988,2.64596643,3878.3,3878.2,0.214]
[1760758689717,2.64596643,3878.3,3877.0,0.1342]
[1760758689896,1.728,3877.9,3877.4,0.4395]
[1760758690262,1.728,3877.5,3877.4,0.4395]
[1760758690978,2.13253089,3877.9,3877.4,0.4395]
[1760758691419,2.13253089,3877.9,3877.5,0.4395]
[1760758691597,1.728,3877.5,3877.1,2.57922472]
[1760758691769,2.13253089,3877.9,3877.0,0.1342]
[1760758692109,2.13253089,3877.9,3877.1,0.4395]
[1760758692605,0.46849221,3878.3,3877.1,0.4395]
[1760758692606,1.728,3878.2,3877.2,2.57918085]
[1760758692803,0.1288,3878.1,3877.4,0.1288]
[1760758693100,0.04495072,3878.0,3877.5,0.4395]
[1760758693999,0.04495072,3878.0,3877.4,0.1288]
[1760758694206,0.04495072,3878.0,3877.6,0.4395]
[1760758694500,0.04495072,3878.0,3877.4,0.1288]
[1760758694676,0.04495072,3878.0,3877.7,0.4395]
[1760758694861,0.04495072,3878.0,3877.8,0.4395]
[1760758696363,0.04495072,3878.0,3877.5,0.001]
[1760758696364,0.04495072,3878.0,3877.9,0.4395]
[1760758696876,0.04495072,3878.0,3877.5,0.001]
[1760758697079,0.04495072,3878.0,3877.5,0.4405]
[1760758697080,1.728,3877.8,3877.5,0.4405]
[1760758697279,1.728,3877.8,3877.5,0.001]
[1760758697584,1.728,3877.8,3877.6,0.4395]
[1760758698692,1.728,3877.8,3877.5,0.001]
[1760758698880,1.728,3877.8,3877.5,0.4405]
[1760758699087,2.32012688,3877.8,3877.5,0.001]
[1760758699282,2.44892688,3877.8,3877.5,0.001]
[1760758700265,0.4657,3877.7,3877.5,0.001]
[1760758700796,0.4657,3877.6,3877.5,0.001]
[1760758701300,6.21321803,3877.6,3877.5,0.001]
[1760758701496,5.79247511,3877.6,3877.5,0.001]
[1760758702197,6.21321803,3877.6,3877.5,0.001]
[1760758703200,6.61779279,3877.6,3877.5,0.001]
[1760758703495,7.34746334,3877.6,3877.5,0.001]
[1760758704999,6.88176334,3877.6,3877.5,0.001]
[1760758705202,6.15209279,3877.6,3877.5,0.001]
[1760758705580,0.40457476,3877.6,3877.5,0.001]
[1760758705781,0.40457476,3877.6,3877.5,0.4405]
[1760758706182,0.1288,3877.7,3877.5,0.4405]
[1760758706429,0.04495175,3877.6,3877.5,0.001]
[1760758706910,0.04495175,3877.6,3877.5,0.4405]
[1760758708181,0.04495175,3877.6,3877.5,0.001]
[1760758708774,4.06446978,3877.6,3877.5,0.001]
[1760758708975,6.21179676,3877.6,3877.5,0.001]
[1760758709576,1.77295175,3877.6,3877.5,0.4566]
[1760758710309,1.728,3877.6,3877.5,0.4566]
[1760758711476,1.728,3877.6,3877.5,0.001]
[1760758712175,6.32971803,3877.6,3877.5,0.001]
[1760758713196,5.87631803,3877.6,3877.5,0.001]
[1760758713401,6.50440452,3877.6,3877.5,0.001]
[1760758714706,6.54935983,3877.6,3877.5,0.001]
[1760758716601,1.77295531,3877.6,3877.5,0.4566]
[1760758719512,1.77295531,3877.6,3877.5,3.0355813]
[1760758720914,1.77295531,3877.6,3877.5,0.4566]
[1760758721088,1.77295531,3877.6,3877.5,0.001]
[1760758721283,1.77295531,3877.6,3877.5,3.0355813]
[1760758723314,0.04495531,3877.6,3877.5,3.0355813]
[1760758723520,0.04495531,3877.6,3877.5,3.60993028]
[1760758724209,0.1288,3878.4,3877.8,2.57874888]
[1760758725244,0.1288,3878.4,3877.9,2.57869047]
[1760758725424,1.8568,3878.4,3877.9,3.03429047]
[1760758725814,0.40647448,3878.5,3878.3,0.214]
[1760758726013,0.40647448,3878.5,3878.4,0.4556]
[1760758726233,0.40647448,3878.5,3878.3,0.214]
[1760758726409,0.002,3878.5,3878.3,0.6696]
[1760758726796,0.002,3878.5,3878.4,0.4556]
[1760758727223,0.04694078,3878.5,3878.4,0.4556]
[1760758728329,0.04694078,3878.5,3878.4,3.03398283]
[1760758728930,0.04694078,3878.5,3878.4,0.4556]
[1760758729909,0.04694078,3878.5,3878.4,3.03398283]
[1760758730321,0.04694078,3878.5,3878.4,3.16278283]
[1760758731337,0.002,3878.5,3878.4,3.16278283]
[1760758734941,0.4709,3878.5,3878.2,2.57851125]
[1760758735150,0.4709,3878.5,3878.2,2.70731125]
[1760758737038,0.002,3878.5,3878.2,2.70731125]
[1760758740252,0.002,3878.5,3878.3,2.57843983]
[1760758740622,0.002,3878.5,3878.4,2.57838283]
[1760758741046,0.002,3878.5,3878.4,3.16268283]
[1760758741250,0.002,3878.5,3878.4,3.75820233]
[1760758743425,0.002,3878.5,3878.4,3.78398615]
[1760758744487,0.002,3878.5,3878.4,3.75820233]
[1760758744891,0.002,3878.5,3878.4,3.78398615]
[1760758745576,0.002,3878.5,3878.4,3.75820233]
[1760758746591,1e-08,3878.9,3878.8,2.57811694]
[1760758746759,1e-08,3878.9,3878.8,2.83592863]
[1760758747105,1e-08,3878.9,3878.8,3.43612863]
[1760758748774,1e-08,3878.9,3878.8,3.46190979]
[1760758749976,1e-08,3878.9,3878.8,3.33310979]
[1760758750178,1e-08,3878.9,3878.8,3.43612863]
[1760758751479,1e-08,3878.9,3878.8,2.96472863]
[1760758754489,1e-08,3878.9,3878.8,3.43612863]
[1760758754681,1e-08,3878.9,3878.8,3.46190979]
[1760758756483,1e-08,3878.9,3878.8,3.43612863]
[1760758757682,1e-08,3878.9,3878.8,3.46190979]
[1760758757887,1e-08,3878.9,3878.8,3.43612863]
[1760758759600,1e-08,3878.9,3878.8,3.46190979]
[1760758760100,1e-08,3878.9,3878.8,2.96472863]
[1760758761397,1e-08,3878.9,3878.8,3.43612863]
[1760758762297,1e-08,3878.9,3878.8,2.96472863]
[1760758763366,1e-08,3878.9,3878.8,3.43612863]
[1760758764003,1e-08,3878.9,3878.8,2.96472863]
[1760758764977,0.67450001,3878.9,3878.8,2.70691694]
[1760758765178,0.67450001,3878.9,3878.8,0.1288]
[1760758765501,0.67450001,3878.9,3878.4,0.001]
[1760758765673,0.67450001,3878.9,3878.5,0.1288]
[1760758765870,0.57601394,3878.8,3878.5,0.1288]
[1760758766273,0.4582,3878.7,3878.5,0.1288]